[Event "Titled Tuesday Blitz August 08 Late 2023"]
[White "Rustemov, Alexander"]
[Black "Hansen, Torbjorn Ringdal"]
[WhiteFideId "4119002"]
[BlackFideId "1501720"]
[WhiteElo "2839"]
[BlackElo "2546"]
[Result "1-0"]
[Round "2"]
[TimeControl "180+1"]
[Date "2023.08.08"]
[WhiteClock "0:01:55"]
[BlackClock "0:01:45"]
[Board "39"]

1. d4 {[%clk 0:01:58]}  Nf6 {[%clk 0:02:57]} 2. c4 {[%clk 0:01:59]}  e6 {[%clk 0:02:57]} 3. Nf3 {[%clk 0:01:59]}  Bb4+ {[%clk 0:02:56]} 4. Bd2 {[%clk 0:01:59]}  Qe7 {[%clk 0:02:51]} 5. g3 {[%clk 0:01:59]}  Nc6 {[%clk 0:02:50]} 6. Nc3 {[%clk 0:01:58]}  Bxc3 {[%clk 0:02:43]} 7. Bxc3 {[%clk 0:01:59]}  Ne4 {[%clk 0:02:43]} 8. Qc2 {[%clk 0:02:00]}  Nxc3 {[%clk 0:02:41]} 9. Qxc3 {[%clk 0:02:00]}  d6 {[%clk 0:02:39]} 10. d5 {[%clk 0:02:00]}  exd5 {[%clk 0:02:33]} 11. Qxg7 {[%clk 0:01:59]}  Rf8 {[%clk 0:02:25]} 12. cxd5 {[%clk 0:01:59]}  Nb4 {[%clk 0:02:14]} 13. Qxh7 {[%clk 0:01:59]}  Qf6 {[%clk 0:01:45]} 14. Qe4+ {[%clk 0:01:55]} 1-0


[Site "https://www.chess.com"]

[Event "Titled Tuesday Blitz August 08 Late 2023"]
[White "Richter, Paul"]
[Black "Gadimbayli, Abdulla"]
[WhiteFideId "2046350"]
[BlackFideId "13404938"]
[WhiteElo "2544"]
[BlackElo "2838"]
[Result "0-1"]
[Round "2"]
[TimeControl "180+1"]
[Date "2023.08.08"]
[WhiteClock "0:01:21"]
[BlackClock "0:02:24"]
[Board "40"]

1. e4 {[%clk 0:03:00]}  e5 {[%clk 0:02:57]} 2. Nf3 {[%clk 0:03:00]}  d5 {[%clk 0:02:57]} 3. Nxe5 {[%clk 0:02:54]}  Bd6 {[%clk 0:02:57]} 4. d4 {[%clk 0:02:53]}  dxe4 {[%clk 0:02:56]} 5. Nc4 {[%clk 0:02:52]}  Nf6 {[%clk 0:02:56]} 6. Nc3 {[%clk 0:02:52]}  O-O {[%clk 0:02:57]} 7. Nxd6 {[%clk 0:02:43]}  Qxd6 {[%clk 0:02:57]} 8. Be3 {[%clk 0:02:38]}  Nc6 {[%clk 0:02:57]} 9. Qd2 {[%clk 0:02:37]}  Rd8 {[%clk 0:02:54]} 10. O-O-O {[%clk 0:02:35]}  a6 {[%clk 0:02:51]} 11. h3 {[%clk 0:02:25]}  b5 {[%clk 0:02:50]} 12. g4 {[%clk 0:02:23]}  b4 {[%clk 0:02:48]} 13. Na4 {[%clk 0:02:21]}  Be6 {[%clk 0:02:48]} 14. b3 {[%clk 0:02:07]}  Bd5 {[%clk 0:02:40]} 15. g5 {[%clk 0:01:49]}  Nd7 {[%clk 0:02:40]} 16. Bf4 {[%clk 0:01:38]}  Qe7 {[%clk 0:02:38]} 17. h4 {[%clk 0:01:38]}  e3 {[%clk 0:02:37]} 18. Qxe3 {[%clk 0:01:28]}  Qxe3+ {[%clk 0:02:27]} 19. fxe3 {[%clk 0:01:29]}  Bxh1 {[%clk 0:02:28]} 20. Bxc7 {[%clk 0:01:21]}  Rdc8 {[%clk 0:02:24]} 0-1


[Site "https://www.chess.com"]

[Event "Titled Tuesday Blitz August 08 Late 2023"]
[White "Talibov, Shiroghlan"]
[Black "Bettalli, Francesco"]
[WhiteFideId "13429078"]
[BlackFideId "2816453"]
[WhiteElo "2826"]
[BlackElo "2534"]
[Result "1-0"]
[Round "2"]
[TimeControl "180+1"]
[Date "2023.08.08"]
[WhiteClock "0:00:04"]
[BlackClock "0:00:00"]
[Board "43"]

1. e4 {[%clk 0:02:54]}  e5 {[%clk 0:02:59]} 2. Nf3 {[%clk 0:02:49]}  Nf6 {[%clk 0:02:59]} 3. d4 {[%clk 0:02:45]}  Nxe4 {[%clk 0:02:53]} 4. dxe5 {[%clk 0:02:45]}  d5 {[%clk 0:02:52]} 5. exd6 {[%clk 0:02:41]}  Bxd6 {[%clk 0:02:50]} 6. Bd3 {[%clk 0:02:40]}  Nc5 {[%clk 0:02:47]} 7. Bg5 {[%clk 0:02:36]}  Be7 {[%clk 0:02:41]} 8. Bb5+ {[%clk 0:02:12]}  c6 {[%clk 0:02:39]} 9. Qxd8+ {[%clk 0:02:10]}  Bxd8 {[%clk 0:02:36]} 10. Bxd8 {[%clk 0:02:11]}  Kxd8 {[%clk 0:02:37]} 11. Be2 {[%clk 0:02:11]}  Re8 {[%clk 0:02:35]} 12. Nc3 {[%clk 0:02:10]}  Kc7 {[%clk 0:02:33]} 13. O-O-O {[%clk 0:02:07]}  Bg4 {[%clk 0:02:28]} 14. Rhe1 {[%clk 0:02:00]}  Nbd7 {[%clk 0:02:28]} 15. Nd4 {[%clk 0:01:53]}  Bxe2 {[%clk 0:02:24]} 16. Rxe2 {[%clk 0:01:54]}  Rxe2 {[%clk 0:02:22]} 17. Ndxe2 {[%clk 0:01:55]}  Re8 {[%clk 0:02:22]} 18. h3 {[%clk 0:01:55]}  Nf6 {[%clk 0:02:21]} 19. Ng3 {[%clk 0:01:53]}  g6 {[%clk 0:02:20]} 20. b3 {[%clk 0:01:53]}  h5 {[%clk 0:02:18]} 21. b4 {[%clk 0:01:37]}  Ne6 {[%clk 0:02:16]} 22. Nge2 {[%clk 0:01:32]}  h4 {[%clk 0:02:11]} 23. a3 {[%clk 0:01:18]}  b6 {[%clk 0:01:47]} 24. Rd3 {[%clk 0:01:17]}  Nh5 {[%clk 0:01:43]} 25. Re3 {[%clk 0:01:10]}  Rd8 {[%clk 0:01:38]} 26. Ne4 {[%clk 0:00:59]}  Nef4 {[%clk 0:01:31]} 27. Nxf4 {[%clk 0:00:58]}  Nxf4 {[%clk 0:01:32]} 28. Rf3 {[%clk 0:00:58]}  Ne2+ {[%clk 0:01:31]} 29. Kb2 {[%clk 0:00:57]}  f5 {[%clk 0:01:32]} 30. Ng5 {[%clk 0:00:53]}  Rd2 {[%clk 0:01:24]} 31. Ne6+ {[%clk 0:00:37]}  Kd6 {[%clk 0:01:22]} 32. Nf4 {[%clk 0:00:34]}  Nxf4 {[%clk 0:01:22]} 33. Rxf4 {[%clk 0:00:35]}  Ke5 {[%clk 0:01:22]} 34. Rxh4 {[%clk 0:00:35]}  Rxf2 {[%clk 0:01:22]} 35. g4 {[%clk 0:00:33]}  f4 {[%clk 0:01:21]} 36. Kc3 {[%clk 0:00:31]}  Rf3+ {[%clk 0:01:20]} 37. Kd2 {[%clk 0:00:27]}  Rxa3 {[%clk 0:01:20]} 38. Rh6 {[%clk 0:00:25]}  Kf6 {[%clk 0:01:16]} 39. h4 {[%clk 0:00:24]}  Rg3 {[%clk 0:01:14]} 40. g5+ {[%clk 0:00:23]}  Kf5 {[%clk 0:01:13]} 41. Rh7 {[%clk 0:00:24]}  a5 {[%clk 0:01:00]} 42. bxa5 {[%clk 0:00:20]}  bxa5 {[%clk 0:01:01]} 43. Rc7 {[%clk 0:00:17]}  Ke4 {[%clk 0:00:51]} 44. Rxc6 {[%clk 0:00:14]}  Rg2+ {[%clk 0:00:52]} 45. Ke1 {[%clk 0:00:14]}  f3 {[%clk 0:00:24]} 46. Rxg6 {[%clk 0:00:14]}  Rxc2 {[%clk 0:00:19]} 47. Re6+ {[%clk 0:00:10]}  Kf4 {[%clk 0:00:19]} 48. g6 {[%clk 0:00:08]}  Kg3 {[%clk 0:00:06]} 49. Rf6 {[%clk 0:00:08]}  f2+ {[%clk 0:00:03]} 50. Rxf2 {[%clk 0:00:06]}  Rc1+ {[%clk 0:00:03]} 51. Ke2 {[%clk 0:00:06]}  Rc6 {[%clk 0:00:03]} 52. h5 {[%clk 0:00:05]}  Kh4 {[%clk 0:00:00]} 53. g7 {[%clk 0:00:04]} 1-0


[Site "https://www.chess.com"]

[Event "Titled Tuesday Blitz August 08 Late 2023"]
[White "Ashraf, Artin"]
[Black "reevecanada"]
[WhiteFideId "22514805"]
[WhiteElo "2819"]
[BlackElo "2530"]
[Result "1-0"]
[Round "2"]
[TimeControl "180+1"]
[Date "2023.08.08"]
[WhiteClock "0:00:26"]
[BlackClock "0:00:12"]
[Board "45"]

1. e4 {[%clk 0:03:00]}  c5 {[%clk 0:02:58]} 2. Nf3 {[%clk 0:02:57]}  d6 {[%clk 0:02:58]} 3. d4 {[%clk 0:02:46]}  cxd4 {[%clk 0:02:56]} 4. Qxd4 {[%clk 0:02:47]}  Nc6 {[%clk 0:02:52]} 5. Qe3 {[%clk 0:02:45]}  Nf6 {[%clk 0:02:50]} 6. h3 {[%clk 0:02:44]}  g6 {[%clk 0:02:51]} 7. Be2 {[%clk 0:02:42]}  Bg7 {[%clk 0:02:51]} 8. O-O {[%clk 0:02:43]}  O-O {[%clk 0:02:51]} 9. Rd1 {[%clk 0:02:40]}  Qc7 {[%clk 0:02:48]} 10. a3 {[%clk 0:02:37]}  a6 {[%clk 0:02:45]} 11. Nc3 {[%clk 0:02:37]}  b5 {[%clk 0:02:42]} 12. Bf1 {[%clk 0:02:12]}  Bb7 {[%clk 0:02:28]} 13. Qe1 {[%clk 0:02:11]}  Ne5 {[%clk 0:02:21]} 14. Nxe5 {[%clk 0:02:08]}  dxe5 {[%clk 0:02:21]} 15. f3 {[%clk 0:02:00]}  e6 {[%clk 0:02:03]} 16. Be3 {[%clk 0:02:00]}  Rfd8 {[%clk 0:02:01]} 17. Qf2 {[%clk 0:01:54]}  Nd7 {[%clk 0:02:00]} 18. a4 {[%clk 0:01:47]}  b4 {[%clk 0:01:58]} 19. Na2 {[%clk 0:01:47]}  a5 {[%clk 0:01:58]} 20. Bb5 {[%clk 0:01:43]}  Bf8 {[%clk 0:01:52]} 21. Nc1 {[%clk 0:01:38]}  Nc5 {[%clk 0:01:51]} 22. Nb3 {[%clk 0:01:33]}  Nxb3 {[%clk 0:01:48]} 23. cxb3 {[%clk 0:01:34]}  Rd6 {[%clk 0:01:45]} 24. Rxd6 {[%clk 0:01:25]}  Qxd6 {[%clk 0:01:44]} 25. Qe2 {[%clk 0:01:19]}  Rd8 {[%clk 0:01:43]} 26. Rc1 {[%clk 0:01:18]}  h5 {[%clk 0:01:12]} 27. Bc5 {[%clk 0:01:01]}  Qc7 {[%clk 0:01:07]} 28. Be3 {[%clk 0:00:55]}  Qd6 {[%clk 0:01:07]} 29. Kh2 {[%clk 0:00:53]}  Be7 {[%clk 0:01:04]} 30. Bc5 {[%clk 0:00:50]}  Qxc5 {[%clk 0:00:36]} 31. Rxc5 {[%clk 0:00:50]}  Bxc5 {[%clk 0:00:37]} 32. h4 {[%clk 0:00:44]}  Rd6 {[%clk 0:00:35]} 33. Be8 {[%clk 0:00:36]}  Kf8 {[%clk 0:00:32]} 34. Bb5 {[%clk 0:00:36]}  Ke7 {[%clk 0:00:32]} 35. Qc2 {[%clk 0:00:35]}  Bb6 {[%clk 0:00:31]} 36. Qc1 {[%clk 0:00:35]}  Bd4 {[%clk 0:00:18]} 37. Qc7+ {[%clk 0:00:33]}  Kf6 {[%clk 0:00:17]} 38. Qxd6 {[%clk 0:00:31]}  Bf2 {[%clk 0:00:16]} 39. Qf8 {[%clk 0:00:27]}  Bxh4 {[%clk 0:00:15]} 40. Qd8+ {[%clk 0:00:27]}  Kg7 {[%clk 0:00:16]} 41. Qxh4 {[%clk 0:00:28]}  Ba8 {[%clk 0:00:12]} 42. Qd8 {[%clk 0:00:26]} 1-0


[Site "https://www.chess.com"]

[Event "Titled Tuesday Blitz August 08 Late 2023"]
[White "Glavina, Pablo"]
[Black "Grigorov, Grigor"]
[WhiteFideId "100234"]
[BlackFideId "2907313"]
[WhiteElo "2521"]
[BlackElo "2807"]
[Result "0-1"]
[Round "2"]
[TimeControl "180+1"]
[Date "2023.08.08"]
[WhiteClock "0:00:54"]
[BlackClock "0:00:07"]
[Board "51"]

1. c4 {[%clk 0:03:00]}  e6 {[%clk 0:02:59]} 2. g3 {[%clk 0:03:00]}  d5 {[%clk 0:02:59]} 3. Bg2 {[%clk 0:03:01]}  d4 {[%clk 0:02:59]} 4. Nf3 {[%clk 0:03:01]}  Nc6 {[%clk 0:02:59]} 5. O-O {[%clk 0:03:00]}  Bc5 {[%clk 0:02:59]} 6. d3 {[%clk 0:03:00]}  Nf6 {[%clk 0:02:58]} 7. Bg5 {[%clk 0:03:00]}  O-O {[%clk 0:02:55]} 8. Nbd2 {[%clk 0:02:59]}  Be7 {[%clk 0:02:51]} 9. a3 {[%clk 0:02:57]}  a5 {[%clk 0:02:51]} 10. Qc2 {[%clk 0:02:48]}  Nd7 {[%clk 0:02:49]} 11. Bxe7 {[%clk 0:02:48]}  Qxe7 {[%clk 0:02:50]} 12. b3 {[%clk 0:02:46]}  Nc5 {[%clk 0:02:45]} 13. Rab1 {[%clk 0:02:44]}  Na6 {[%clk 0:02:40]} 14. Ra1 {[%clk 0:02:38]}  e5 {[%clk 0:02:39]} 15. Rfe1 {[%clk 0:02:38]}  Bf5 {[%clk 0:02:32]} 16. Nh4 {[%clk 0:02:34]}  Bd7 {[%clk 0:02:30]} 17. e3 {[%clk 0:02:19]}  dxe3 {[%clk 0:02:21]} 18. fxe3 {[%clk 0:02:16]}  Nc5 {[%clk 0:02:14]} 19. Nhf3 {[%clk 0:02:08]}  Bf5 {[%clk 0:02:11]} 20. e4 {[%clk 0:02:08]}  Bg4 {[%clk 0:02:08]} 21. Qc3 {[%clk 0:02:04]}  Rad8 {[%clk 0:02:05]} 22. Re3 {[%clk 0:02:03]}  Nd4 {[%clk 0:01:54]} 23. b4 {[%clk 0:01:41]}  axb4 {[%clk 0:01:40]} 24. axb4 {[%clk 0:01:41]}  Bxf3 {[%clk 0:01:38]} 25. Nxf3 {[%clk 0:01:36]}  Ncb3 {[%clk 0:01:25]} 26. Rf1 {[%clk 0:01:27]}  Nxf3+ {[%clk 0:01:23]} 27. Rexf3 {[%clk 0:01:25]}  Nd4 {[%clk 0:01:23]} 28. R3f2 {[%clk 0:01:25]}  Ra8 {[%clk 0:01:21]} 29. c5 {[%clk 0:01:20]}  Qe6 {[%clk 0:01:17]} 30. h4 {[%clk 0:01:19]}  Ra2 {[%clk 0:00:56]} 31. Kh2 {[%clk 0:01:17]}  Rxf2 {[%clk 0:00:50]} 32. Rxf2 {[%clk 0:01:18]}  Ra8 {[%clk 0:00:39]} 33. Qd2 {[%clk 0:01:10]}  f6 {[%clk 0:00:34]} 34. Bh3 {[%clk 0:01:09]}  Qb3 {[%clk 0:00:30]} 35. g4 {[%clk 0:01:06]}  Nf3+ {[%clk 0:00:25]} 36. Rxf3 {[%clk 0:01:04]}  Ra2 {[%clk 0:00:25]} 37. Rf2 {[%clk 0:01:04]}  Rxd2 {[%clk 0:00:24]} 38. Rxd2 {[%clk 0:01:04]}  Qxb4 {[%clk 0:00:25]} 39. Rc2 {[%clk 0:01:05]}  Qe1 {[%clk 0:00:22]} 40. g5 {[%clk 0:01:03]}  Qxh4 {[%clk 0:00:20]} 41. gxf6 {[%clk 0:01:03]}  Qxf6 {[%clk 0:00:20]} 42. Rb2 {[%clk 0:01:01]}  b6 {[%clk 0:00:19]} 43. cxb6 {[%clk 0:01:02]}  cxb6 {[%clk 0:00:19]} 44. Kg2 {[%clk 0:01:02]}  g6 {[%clk 0:00:18]} 45. Rb5 {[%clk 0:01:01]}  Qg5+ {[%clk 0:00:18]} 46. Kh1 {[%clk 0:00:58]}  Qc1+ {[%clk 0:00:17]} 47. Kh2 {[%clk 0:00:57]}  Qd2+ {[%clk 0:00:16]} 48. Bg2 {[%clk 0:00:55]}  Qxd3 {[%clk 0:00:16]} 49. Rxb6 {[%clk 0:00:56]}  Qe3 {[%clk 0:00:16]} 50. Rb7 {[%clk 0:00:55]}  Qf4+ {[%clk 0:00:16]} 51. Kh1 {[%clk 0:00:56]}  h5 {[%clk 0:00:16]} 52. Rb6 {[%clk 0:00:52]}  Kg7 {[%clk 0:00:16]} 53. Rb3 {[%clk 0:00:52]}  g5 {[%clk 0:00:14]} 54. Rf3 {[%clk 0:00:53]}  Qc1+ {[%clk 0:00:14]} 55. Kh2 {[%clk 0:00:53]}  g4 {[%clk 0:00:13]} 56. Rf5 {[%clk 0:00:53]}  h4 {[%clk 0:00:12]} 57. Rh5 {[%clk 0:00:52]}  Qf4+ {[%clk 0:00:11]} 58. Kh1 {[%clk 0:00:52]}  Qg3 {[%clk 0:00:11]} 59. Rg5+ {[%clk 0:00:51]}  Kh6 {[%clk 0:00:09]} 60. Rg8 {[%clk 0:00:50]}  h3 {[%clk 0:00:10]} 61. Bf1 {[%clk 0:00:50]}  Qf2 {[%clk 0:00:09]} 62. Rxg4 {[%clk 0:00:49]}  Qxf1+ {[%clk 0:00:09]} 63. Kh2 {[%clk 0:00:50]}  Qf3 {[%clk 0:00:08]} 64. Rh4+ {[%clk 0:00:48]}  Kg5 {[%clk 0:00:08]} 65. Rxh3 {[%clk 0:00:48]}  Qxe4 {[%clk 0:00:06]} 66. Rh8 {[%clk 0:00:48]}  Qe2+ {[%clk 0:00:06]} 67. Kg3 {[%clk 0:00:48]}  Qg4+ {[%clk 0:00:07]} 68. Kf2 {[%clk 0:00:48]}  Qf4+ {[%clk 0:00:07]} 69. Ke2 {[%clk 0:00:49]}  e4 {[%clk 0:00:07]} 70. Rg8+ {[%clk 0:00:49]}  Kh6 {[%clk 0:00:07]} 71. Rh8+ {[%clk 0:00:49]}  Kg7 {[%clk 0:00:08]} 72. Ra8 {[%clk 0:00:49]}  Qf3+ {[%clk 0:00:08]} 73. Ke1 {[%clk 0:00:49]}  e3 {[%clk 0:00:08]} 74. Ra2 {[%clk 0:00:50]}  Qh1+ {[%clk 0:00:07]} 75. Ke2 {[%clk 0:00:51]}  Qh2+ {[%clk 0:00:08]} 76. Kxe3 {[%clk 0:00:52]}  Qxa2 {[%clk 0:00:08]} 77. Kd4 {[%clk 0:00:53]}  Qb3 {[%clk 0:00:08]} 78. Ke5 {[%clk 0:00:53]}  Qc4 {[%clk 0:00:07]} 79. Kd6 {[%clk 0:00:54]} 0-1


[Site "https://www.chess.com"]

[Event "Titled Tuesday Blitz August 08 Late 2023"]
[White "Adewumi, Tanitoluwa"]
[Black "brm72"]
[WhiteFideId "30966396"]
[WhiteElo "2779"]
[BlackElo "2521"]
[Result "1-0"]
[Round "2"]
[TimeControl "180+1"]
[Date "2023.08.08"]
[WhiteClock "0:00:17"]
[BlackClock "0:00:32"]
[Board "53"]

1. e4 {[%clk 0:02:49]}  c6 {[%clk 0:02:58]} 2. d4 {[%clk 0:02:48]}  d5 {[%clk 0:02:58]} 3. exd5 {[%clk 0:02:47]}  cxd5 {[%clk 0:02:59]} 4. Bd3 {[%clk 0:02:47]}  Nc6 {[%clk 0:03:00]} 5. c3 {[%clk 0:02:47]}  Qc7 {[%clk 0:03:00]} 6. Ne2 {[%clk 0:02:36]}  Bg4 {[%clk 0:03:00]} 7. O-O {[%clk 0:02:34]}  Nf6 {[%clk 0:02:56]} 8. Bg5 {[%clk 0:02:32]}  e6 {[%clk 0:02:55]} 9. Qe1 {[%clk 0:02:31]}  Bd6 {[%clk 0:02:50]} 10. f3 {[%clk 0:02:31]}  Bh5 {[%clk 0:02:29]} 11. Qh4 {[%clk 0:02:29]}  Bg6 {[%clk 0:02:24]} 12. Bxg6 {[%clk 0:02:28]}  fxg6 {[%clk 0:02:25]} 13. Bxf6 {[%clk 0:02:28]}  gxf6 {[%clk 0:02:16]} 14. Qxf6 {[%clk 0:02:29]}  Rf8 {[%clk 0:02:09]} 15. Qxe6+ {[%clk 0:02:24]}  Kd8 {[%clk 0:02:10]} 16. g3 {[%clk 0:01:34]}  Re8 {[%clk 0:02:02]} 17. Qf6+ {[%clk 0:01:35]}  Be7 {[%clk 0:02:02]} 18. Qf4 {[%clk 0:01:32]}  Bd6 {[%clk 0:02:02]} 19. Qg5+ {[%clk 0:01:28]}  Kd7 {[%clk 0:01:58]} 20. Rf2 {[%clk 0:01:09]}  Re6 {[%clk 0:01:56]} 21. Na3 {[%clk 0:00:51]}  a6 {[%clk 0:01:55]} 22. Qxd5 {[%clk 0:00:38]}  Rae8 {[%clk 0:01:51]} 23. Re1 {[%clk 0:00:37]}  Kc8 {[%clk 0:01:43]} 24. Nc4 {[%clk 0:00:35]}  Bf8 {[%clk 0:01:41]} 25. Qg5 {[%clk 0:00:27]}  Be7 {[%clk 0:00:54]} 26. Qg4 {[%clk 0:00:26]}  Bf6 {[%clk 0:00:43]} 27. Nf4 {[%clk 0:00:22]}  h5 {[%clk 0:00:44]} 28. Qh3 {[%clk 0:00:21]}  Nxd4 {[%clk 0:00:37]} 29. Nxe6 {[%clk 0:00:18]}  Qd7 {[%clk 0:00:32]} 30. Nb6+ {[%clk 0:00:17]} 1-0


[Site "https://www.chess.com"]

[Event "Titled Tuesday Blitz August 08 Late 2023"]
[White "Domingo Nunez, Alejandro"]
[Black "Kilic, Eray"]
[WhiteFideId "22245561"]
[BlackFideId "44517173"]
[WhiteElo "2518"]
[BlackElo "2778"]
[Result "0-1"]
[Round "2"]
[TimeControl "180+1"]
[Date "2023.08.08"]
[WhiteClock "0:00:04"]
[BlackClock "0:00:26"]
[Board "54"]

1. Nf3 {[%clk 0:03:00]}  Nf6 {[%clk 0:02:59]} 2. g3 {[%clk 0:03:01]}  d5 {[%clk 0:02:59]} 3. Bg2 {[%clk 0:03:01]}  g6 {[%clk 0:03:00]} 4. b3 {[%clk 0:02:59]}  Bg7 {[%clk 0:03:00]} 5. Bb2 {[%clk 0:03:00]}  O-O {[%clk 0:03:00]} 6. c4 {[%clk 0:02:59]}  Nc6 {[%clk 0:03:00]} 7. O-O {[%clk 0:02:55]}  d4 {[%clk 0:03:01]} 8. e3 {[%clk 0:02:51]}  e5 {[%clk 0:02:57]} 9. exd4 {[%clk 0:02:51]}  exd4 {[%clk 0:02:57]} 10. Na3 {[%clk 0:02:52]}  Bf5 {[%clk 0:02:48]} 11. Nb5 {[%clk 0:02:48]}  Ne4 {[%clk 0:02:47]} 12. Nh4 {[%clk 0:02:32]}  a6 {[%clk 0:02:44]} 13. Nxf5 {[%clk 0:02:31]}  gxf5 {[%clk 0:02:44]} 14. Na3 {[%clk 0:02:30]}  Qg5 {[%clk 0:02:41]} 15. Nb1 {[%clk 0:02:25]}  Rae8 {[%clk 0:02:39]} 16. Ba3 {[%clk 0:02:01]}  d3 {[%clk 0:02:29]} 17. Nc3 {[%clk 0:01:56]}  Nxd2 {[%clk 0:02:17]} 18. f4 {[%clk 0:01:46]}  Qf6 {[%clk 0:02:10]} 19. Qxd2 {[%clk 0:01:38]}  Qxc3 {[%clk 0:02:10]} 20. Rad1 {[%clk 0:01:30]}  Qxd2 {[%clk 0:01:48]} 21. Rxd2 {[%clk 0:01:29]}  Re2 {[%clk 0:01:49]} 22. Rfd1 {[%clk 0:01:02]}  Bd4+ {[%clk 0:01:40]} 23. Kh1 {[%clk 0:00:47]}  Rfe8 {[%clk 0:01:37]} 24. Rxd3 {[%clk 0:00:46]}  Rxa2 {[%clk 0:01:36]} 25. Bxc6 {[%clk 0:00:39]}  bxc6 {[%clk 0:01:37]} 26. Rxd4 {[%clk 0:00:39]}  Rxa3 {[%clk 0:01:37]} 27. Rd8 {[%clk 0:00:37]}  Kf8 {[%clk 0:01:36]} 28. R1d7 {[%clk 0:00:35]}  Rxd8 {[%clk 0:01:35]} 29. Rxd8+ {[%clk 0:00:35]}  Ke7 {[%clk 0:01:36]} 30. Ra8 {[%clk 0:00:29]}  a5 {[%clk 0:01:26]} 31. Kg2 {[%clk 0:00:17]}  Kd6 {[%clk 0:01:27]} 32. h4 {[%clk 0:00:17]}  Kc5 {[%clk 0:01:26]} 33. h5 {[%clk 0:00:15]}  h6 {[%clk 0:01:19]} 34. Ra6 {[%clk 0:00:05]}  f6 {[%clk 0:01:05]} 35. Kh2 {[%clk 0:00:03]}  Ra2+ {[%clk 0:01:00]} 36. Kh3 {[%clk 0:00:03]}  Kd6 {[%clk 0:00:49]} 37. Ra8 {[%clk 0:00:02]}  Ra3 {[%clk 0:00:47]} 38. Kg2 {[%clk 0:00:01]}  Ke6 {[%clk 0:00:45]} 39. Ra6 {[%clk 0:00:01]}  Kd7 {[%clk 0:00:45]} 40. Kh3 {[%clk 0:00:02]}  Kd6 {[%clk 0:00:42]} 41. Kg2 {[%clk 0:00:02]}  Rxb3 {[%clk 0:00:42]} 42. Rxa5 {[%clk 0:00:02]}  Ke6 {[%clk 0:00:41]} 43. Rc5 {[%clk 0:00:02]}  Rb6 {[%clk 0:00:40]} 44. Kh3 {[%clk 0:00:03]}  Ra6 {[%clk 0:00:40]} 45. Kh4 {[%clk 0:00:03]}  Rb6 {[%clk 0:00:39]} 46. Kh3 {[%clk 0:00:04]}  Ke7 {[%clk 0:00:34]} 47. Rxf5 {[%clk 0:00:04]}  Rb4 {[%clk 0:00:35]} 48. Rc5 {[%clk 0:00:04]}  Kd6 {[%clk 0:00:36]} 49. Rf5 {[%clk 0:00:05]}  Ke6 {[%clk 0:00:35]} 50. Rc5 {[%clk 0:00:06]}  Rb6 {[%clk 0:00:26]} 51. Rf5 {[%clk 0:00:04]}  Kxf5 {[%clk 0:00:26]} 0-1


[Site "https://www.chess.com"]

[Event "Titled Tuesday Blitz August 08 Late 2023"]
[White "Fier, Alexandr"]
[Black "Kubicka, Anna"]
[WhiteFideId "2107139"]
[BlackFideId "1152254"]
[WhiteElo "2773"]
[BlackElo "2517"]
[Result "1-0"]
[Round "2"]
[TimeControl "180+1"]
[Date "2023.08.08"]
[WhiteClock "0:02:27"]
[BlackClock "0:00:00"]
[Board "55"]

1. e4 {[%clk 0:03:00]}  c5 {[%clk 0:02:59]} 2. Nf3 {[%clk 0:03:01]}  d6 {[%clk 0:03:00]} 3. d4 {[%clk 0:03:01]}  cxd4 {[%clk 0:03:01]} 4. Nxd4 {[%clk 0:03:02]}  Nf6 {[%clk 0:03:01]} 5. Nc3 {[%clk 0:03:02]}  a6 {[%clk 0:03:02]} 6. Bg5 {[%clk 0:03:03]}  Nbd7 {[%clk 0:03:01]} 7. Qe2 {[%clk 0:03:02]}  h6 {[%clk 0:03:01]} 8. Bd2 {[%clk 0:03:02]}  e5 {[%clk 0:03:00]} 9. Nb3 {[%clk 0:02:58]}  Be7 {[%clk 0:02:57]} 10. O-O-O {[%clk 0:02:58]}  b5 {[%clk 0:02:55]} 11. g4 {[%clk 0:02:57]}  Bb7 {[%clk 0:02:51]} 12. Rg1 {[%clk 0:02:53]}  b4 {[%clk 0:02:45]} 13. Nd5 {[%clk 0:02:53]}  Nxd5 {[%clk 0:02:42]} 14. exd5 {[%clk 0:02:54]}  a5 {[%clk 0:02:37]} 15. Kb1 {[%clk 0:02:53]}  a4 {[%clk 0:02:25]} 16. Nc1 {[%clk 0:02:52]}  Qb6 {[%clk 0:02:15]} 17. Be3 {[%clk 0:02:51]}  Qa5 {[%clk 0:02:07]} 18. Qb5 {[%clk 0:02:50]}  b3 {[%clk 0:01:34]} 19. Qxa5 {[%clk 0:02:44]}  bxc2+ {[%clk 0:01:27]} 20. Kxc2 {[%clk 0:02:45]}  Rxa5 {[%clk 0:01:27]} 21. Bg2 {[%clk 0:02:46]}  Bg5 {[%clk 0:01:17]} 22. Ne2 {[%clk 0:02:46]}  Bxe3 {[%clk 0:01:12]} 23. fxe3 {[%clk 0:02:47]}  O-O {[%clk 0:01:04]} 24. Nc3 {[%clk 0:02:47]}  a3 {[%clk 0:00:58]} 25. b4 {[%clk 0:02:47]}  Raa8 {[%clk 0:00:53]} 26. Kb3 {[%clk 0:02:48]}  Rfc8 {[%clk 0:00:49]} 27. Nb5 {[%clk 0:02:48]}  Ra6 {[%clk 0:00:32]} 28. Rc1 {[%clk 0:02:49]}  Rxc1 {[%clk 0:00:17]} 29. Rxc1 {[%clk 0:02:49]}  Nf6 {[%clk 0:00:16]} 30. Nc7 {[%clk 0:02:43]}  Rb6 {[%clk 0:00:13]} 31. h3 {[%clk 0:02:42]}  e4 {[%clk 0:00:12]} 32. Rd1 {[%clk 0:02:32]}  Nd7 {[%clk 0:00:10]} 33. Kxa3 {[%clk 0:02:31]}  Nf6 {[%clk 0:00:03]} 34. Kb3 {[%clk 0:02:28]}  Bc8 {[%clk 0:00:04]} 35. a4 {[%clk 0:02:27]}  Rb7 {[%clk 0:00:04]} 36. Nb5 {[%clk 0:02:28]}  Bd7 {[%clk 0:00:01]} 37. Nxd6 {[%clk 0:02:27]}  Ra7 {[%clk 0:00:02]} 38. b5 {[%clk 0:02:27]}  Kf8 {[%clk 0:00:00]} 39. Nxe4 {[%clk 0:02:27]} 1-0


[Site "https://www.chess.com"]